bitfinex-derivatives/quotes_BTCF0:USTF0_20250810
["timestamp","ask_amount","ask_price","bid_price","bid_amount"]
[1754850538286,0.57418564,118560.0,118550.0,0.76771548]
[1754850538692,0.57418564,118560.0,118550.0,1.53671548]
[1754850542991,0.57418564,118560.0,118550.0,0.4452436]
[1754850543294,0.57418564,118560.0,118550.0,1.2142436]
[1754850543493,0.57418564,118560.0,118550.0,1.53671548]
[1754850544089,0.57418564,118560.0,118550.0,1.2142436]
[1754850544795,0.57408564,118560.0,118550.0,1.2062436]
[1754850545388,0.57408564,118560.0,118550.0,1.52871548]
[1754850547490,0.57408564,118560.0,118550.0,1.53661548]
[1754850547689,0.57418564,118560.0,118550.0,1.53671548]
[1754850551899,0.57418564,118560.0,118550.0,1.52871548]
[1754850552998,0.57418564,118560.0,118550.0,1.16791548]
[1754850553218,0.57418564,118560.0,118550.0,1.52871548]
[1754850559004,0.57418564,118560.0,118550.0,1.15991548]
[1754850559201,0.57418564,118560.0,118550.0,1.52071548]
[1754850560499,0.57418564,118560.0,118550.0,1.1982436]
[1754850560805,0.57418564,118560.0,118550.0,1.52071548]
[1754850563397,0.57418564,118560.0,118550.0,1.1982436]
[1754850563703,0.57418564,118560.0,118550.0,1.52071548]
[1754850566007,0.57418564,118560.0,118550.0,1.51271548]
[1754850567211,0.57418564,118560.0,118550.0,0.3609]
[1754850567401,0.57418564,118560.0,118550.0,1.12982]
[1754850567803,0.57418564,118560.0,118550.0,1.45229188]
[1754850568811,0.57418564,118560.0,118550.0,1.53663548]
[1754850569208,0.57418564,118560.0,118550.0,1.45229188]
[1754850570212,0.57418564,118560.0,118550.0,1.53663548]
[1754850570704,0.57418564,118560.0,118550.0,1.17583548]
[1754850570912,0.57418564,118560.0,118550.0,1.2141636]
[1754850571106,0.57418564,118560.0,118550.0,1.53663548]
[1754850571313,0.57418564,118560.0,118550.0,0.76771548]
[1754850573206,0.57408564,118560.0,118550.0,0.75971548]
[1754850575010,0.57408564,118560.0,118550.0,0.39891548]
[1754850575313,0.15526376,118560.0,118550.0,0.75981548]
[1754850575714,0.17868376,118560.0,118550.0,0.75981548]
[1754850575916,0.25201376,118560.0,118550.0,0.75981548]
[1754850576316,0.57448564,118560.0,118550.0,0.75981548]
[1754850580312,0.57448564,118560.0,118550.0,0.75181548]
[1754850582315,0.25201376,118560.0,118550.0,0.75181548]
[1754850584012,0.25201376,118560.0,118550.0,0.39101548]
[1754850584220,0.25201376,118560.0,118550.0,0.75181548]
[1754850585421,0.57448564,118560.0,118550.0,0.75181548]
[1754850587323,0.57448564,118560.0,118550.0,0.74381548]
[1754850590122,0.16493376,118560.0,118550.0,0.74381548]
[1754850590315,0.15526376,118560.0,118550.0,0.74381548]
[1754850590919,0.16901376,118560.0,118550.0,0.74381548]
[1754850591920,0.15526376,118560.0,118550.0,0.74381548]
[1754850592312,0.15526376,118560.0,118550.0,0.4213436]
[1754850592519,0.17873376,118560.0,118550.0,0.74381548]
[1754850593724,0.17873376,118560.0,118550.0,1.10461548]
[1754850594332,0.17873376,118560.0,118550.0,1.09661548]
[1754850596735,0.21366376,118560.0,118550.0,0.37501548]
[1754850596935,0.21366376,118560.0,118550.0,1.09661548]
[1754850597328,0.15526376,118560.0,118550.0,1.09661548]
[1754850597534,0.18052376,118560.0,118550.0,1.09661548]
[1754850598332,0.21545376,118560.0,118550.0,1.09661548]
[1754850598535,0.25449376,118560.0,118550.0,1.09661548]
[1754850599037,0.25449376,118560.0,118550.0,0.37501548]
[1754850599236,0.25449376,118560.0,118550.0,1.09661548]
[1754850601438,0.25449376,118560.0,118550.0,1.08861548]
[1754850602737,0.21956376,118560.0,118550.0,1.08861548]
[1754850602938,0.25449376,118560.0,118550.0,1.08861548]
[1754850606733,0.57696564,118560.0,118550.0,1.08861548]
[1754850609340,0.57696564,118560.0,118550.0,1.08061548]
[1754850610038,0.57696564,118560.0,118550.0,0.35901548]
[1754850610240,0.57696564,118560.0,118550.0,1.08061548]
[1754850610537,0.25449376,118560.0,118550.0,1.08061548]
[1754850611038,0.25449376,118560.0,118550.0,0.35901548]
[1754850611340,0.25449376,118560.0,118550.0,1.08061548]
[1754850612940,0.57696564,118560.0,118550.0,1.08061548]
[1754850615445,0.25449376,118560.0,118550.0,1.08061548]
[1754850616141,0.25449376,118560.0,118550.0,0.35901548]
[1754850616340,0.25449376,118560.0,118550.0,1.04417188]
[1754850616537,0.25449376,118560.0,118550.0,1.12851548]
[1754850620043,0.15562376,118560.0,118550.0,1.12851548]
[1754850620642,0.17054376,118560.0,118550.0,1.12851548]
[1754850621046,0.18024376,118560.0,118550.0,1.12851548]
[1754850621445,0.21249376,118560.0,118550.0,0.8060436]
[1754850621747,0.25202376,118560.0,118550.0,1.12851548]
[1754850623355,0.25192376,118560.0,118550.0,1.12051548]
[1754850625748,0.2137468,118560.0,118550.0,1.12051548]
[1754850626052,0.2334604,118560.0,118550.0,0.39901548]
[1754850626349,0.2334604,118560.0,118550.0,1.12061548]
[1754850630456,0.2334604,118560.0,118550.0,1.11261548]
[1754850637352,0.1616804,118560.0,118550.0,1.11261548]
[1754850637658,0.1388601,118560.0,118550.0,1.10461548]
[1754850642958,0.0297136,118560.0,118550.0,1.42708736]
[1754850644562,0.0101,118560.0,118550.0,1.42708736]
[1754850644762,0.0101,118560.0,118550.0,1.41908736]
[1754850645457,0.02970396,118560.0,118550.0,0.7741436]
[1754850645656,0.02970396,118560.0,118550.0,1.41908736]
[1754850646562,0.05451396,118560.0,118550.0,1.41908736]
[1754850651266,0.05451396,118560.0,118550.0,0.7741436]
[1754850651468,0.05451396,118560.0,118550.0,1.09661548]
[1754850651768,0.05451396,118560.0,118550.0,1.08861548]
[1754850655166,0.03491,118560.0,118550.0,1.08861548]
[1754850656569,0.03491,118560.0,118550.0,1.41108736]
[1754850658869,0.03491,118560.0,118550.0,1.40308736]
[1754850663976,0.05949,118560.0,118550.0,1.08061548]
[1754850664370,0.09293,118560.0,118550.0,1.08061548]
[1754850665872,0.09293,118560.0,118550.0,1.04417188]
[1754850666274,0.09293,118560.0,118550.0,1.12851548]
[1754850669583,0.13032,118560.0,118550.0,1.12851548]
[1754850671386,0.13032,118560.0,118550.0,0.40691548]
[1754850671681,0.13032,118560.0,118550.0,1.12851548]
[1754850671977,0.13032,118560.0,118550.0,0.40691548]
[1754850672184,0.14986348,118560.0,118550.0,1.12851548]
[1754850673785,0.14986348,118560.0,118550.0,1.45098736]
[1754850674385,0.14986348,118560.0,118550.0,0.72938736]
[1754850674586,0.14986348,118560.0,118550.0,1.12851548]
[1754850675086,0.14976348,118560.0,118550.0,1.12051548]
[1754850675379,0.14976348,118560.0,118550.0,0.39891548]
[1754850675586,0.14976348,118560.0,118550.0,1.12051548]
[1754850676181,0.14976348,118560.0,118550.0,1.44298736]
[1754850676386,0.14986348,118560.0,118550.0,1.44308736]
[1754850678089,0.14986348,118560.0,118550.0,0.72148736]
[1754850678289,0.14986348,118560.0,118550.0,1.44308736]
[1754850678689,0.14986348,118560.0,118550.0,0.72148736]
[1754850678890,0.14986348,118560.0,118550.0,1.44308736]
[1754850679990,0.14986348,118560.0,118550.0,0.72148736]
[1754850680191,0.14986348,118560.0,118550.0,1.44308736]
[1754850682092,0.14986348,118560.0,118550.0,1.43508736]
[1754850683689,0.11642348,118560.0,118550.0,1.43508736]
[1754850689307,0.11651162,118560.0,118550.0,1.43508736]
[1754850689601,0.11651162,118560.0,118550.0,1.42708736]
[1754850692705,0.11651162,118560.0,118550.0,0.70548736]
[1754850692897,0.11651162,118560.0,118550.0,1.42708736]
[1754850693200,0.11651162,118560.0,118550.0,0.70548736]
[1754850693503,0.11651162,118560.0,118550.0,1.42708736]
[1754850696510,0.11651162,118560.0,118550.0,1.41908736]
[1754850698215,0.11651162,118560.0,118550.0,0.69748736]
[1754850698413,0.11651162,118560.0,118550.0,1.41908736]
[1754850698716,0.11651162,118560.0,118550.0,0.69748736]
[1754850699012,0.11651162,118560.0,118550.0,1.41908736]
[1754850700012,0.11651162,118560.0,118550.0,0.69748736]
[1754850700214,0.11651162,118560.0,118550.0,1.41908736]
[1754850701108,0.11651162,118560.0,118550.0,0.69748736]
[1754850701402,0.11651162,118560.0,118550.0,1.41908736]
[1754850702612,0.07912162,118560.0,118550.0,1.41908736]
[1754850703714,0.07912162,118560.0,118550.0,1.41108736]
[1754850705211,0.07912162,118560.0,118550.0,0.7661436]
[1754850705514,0.07912162,118560.0,118550.0,1.41108736]
[1754850705701,0.06426162,118560.0,118550.0,1.41108736]
[1754850706414,0.05454162,118560.0,118550.0,1.41108736]
[1754850706607,0.0101,118560.0,118550.0,1.41108736]
[1754850707815,0.0101,118560.0,118550.0,1.64198736]
[1754850710726,0.0101,118560.0,118550.0,1.63398736]
[1754850712218,0.03485,118560.0,118550.0,1.63398736]
[1754850714422,0.03485,118560.0,118550.0,0.91238736]
[1754850714613,0.03485,118560.0,118550.0,1.63398736]
[1754850717724,0.03485,118560.0,118550.0,1.59754376]
[1754850718224,0.03485,118560.0,118550.0,1.68188736]
[1754850724831,0.03475,118560.0,118550.0,1.35931548]
[1754850725135,0.03475,118560.0,118550.0,1.68178736]
[1754850725931,0.03475,118560.0,118550.0,1.0368436]
[1754850726131,0.03485,118560.0,118550.0,1.68188736]
[1754850732039,0.03485,118560.0,118550.0,1.67388736]
[1754850735238,0.05448697,118560.0,118550.0,1.67388736]
[1754850738136,0.05448697,118560.0,118550.0,0.95228736]
[1754850738340,0.05448697,118560.0,118550.0,1.67388736]
[1754850738940,0.05448697,118560.0,118550.0,1.66588736]
[1754850743041,0.03485,118560.0,118550.0,1.66588736]
[1754850745432,0.03485,118560.0,118550.0,1.74172942]
[1754850745627,0.03485,118560.0,118550.0,1.66588736]
[1754850746132,0.03485,118560.0,118550.0,1.65788736]
[1754850752742,0.03485,118560.0,118550.0,0.93628736]
[1754850752943,0.03485,118560.0,118550.0,1.65788736]
[1754850753146,0.03485,118560.0,118550.0,1.64988736]
[1754850754148,0.09087119,118580.0,118570.0,0.0843291]
[1754850754351,0.2215334,118610.0,118600.0,0.0843078]
[1754850754549,0.24110902,118610.0,118600.0,1.53417968]
[1754850755240,0.24954957,118610.0,118600.0,1.53417968]
[1754850755439,0.25864957,118610.0,118600.0,1.53427968]
[1754850755946,0.17434897,118610.0,118600.0,1.53427968]
[1754850756742,0.18434897,118610.0,118600.0,1.53527968]
[1754850757644,0.18134897,118610.0,118600.0,1.53627968]
[1754850757945,0.26564957,118610.0,118600.0,1.53627968]
[1754850758447,0.18134897,118610.0,118600.0,1.53627968]
[1754850760446,0.26564967,118610.0,118600.0,1.53627968]
[1754850761046,0.18134897,118610.0,118600.0,1.53627968]
[1754850761643,0.17290842,118610.0,118600.0,1.53627968]
[1754850762247,0.25720912,118610.0,118600.0,1.53627968]
[1754850762448,0.26557904,118610.0,118600.0,1.52827968]
[1754850766356,0.25720912,118610.0,118600.0,1.52827968]
[1754850766956,0.2376335,118610.0,118600.0,1.52827968]
[1754850767157,0.25747149,118610.0,118600.0,1.52827968]
[1754850768855,0.26611242,118610.0,118600.0,1.52827968]
[1754850769461,0.26611242,118610.0,118600.0,1.52027968]
[1754850772163,0.26611242,118610.0,118600.0,1.88107968]
[1754850773458,0.25747149,118610.0,118600.0,1.88107968]
[1754850774658,0.25747149,118610.0,118600.0,1.15947968]
[1754850774860,0.25747149,118610.0,118600.0,1.88107968]
[1754850775462,0.26604646,118610.0,118600.0,1.88107968]
[1754850776564,0.26604646,118610.0,118600.0,1.87307968]
[1754850777458,0.25747149,118610.0,118600.0,1.87307968]
[1754850778963,0.26588327,118610.0,118600.0,1.87307968]
[1754850780063,0.25747149,118610.0,118600.0,1.87307968]
[1754850782463,0.22494149,118610.0,118600.0,1.87307968]
[1754850782667,0.22511149,118610.0,118600.0,1.87307968]
[1754850782872,0.22511149,118610.0,118600.0,1.5506078]
[1754850783170,0.22511149,118610.0,118600.0,1.87307968]
[1754850783761,0.22511149,118610.0,118600.0,1.86507968]
[1754850784365,0.25999149,118610.0,118600.0,1.86507968]
[1754850788672,0.25999149,118610.0,118600.0,1.14347968]
[1754850788874,0.25999149,118610.0,118600.0,1.86507968]
[1754850791367,0.25999149,118610.0,118600.0,1.85707968]
[1754850797682,0.25999149,118610.0,118600.0,1.13547968]
[1754850797882,0.25999149,118610.0,118600.0,1.85707968]
[1754850798383,0.25999149,118610.0,118600.0,1.84907968]
[1754850804095,0.22511149,118610.0,118600.0,1.84907968]
[1754850805487,0.22511149,118610.0,118600.0,1.81277188]
[1754850805786,0.22511149,118610.0,118600.0,1.89707968]
[1754850806690,0.25679149,118610.0,118600.0,1.89707968]
[1754850807481,0.25679149,118610.0,118600.0,1.5746078]
[1754850807686,0.25679149,118610.0,118600.0,1.89707968]
[1754850808388,0.25791553,118610.0,118600.0,1.89707968]
[1754850809487,0.16405553,118610.0,118600.0,1.89707968]
[1754850810289,0.07975483,118610.0,118600.0,1.89707968]
[1754850810782,0.05600483,118610.0,118600.0,1.89707968]
[1754850812681,0.05600483,118610.0,118600.0,1.88907968]
[1754850812990,0.03706203,118610.0,118600.0,1.88907968]
[1754850813896,0.03706203,118610.0,118600.0,2.21155156]
[1754850814290,0.03706203,118610.0,118600.0,2.41045156]
[1754850816187,0.02506203,118610.0,118600.0,2.40945156]
[1754850816496,0.0101,118610.0,118600.0,2.08797968]
[1754850819693,0.0101,118610.0,118600.0,2.07997968]
[1754850822595,0.03442,118610.0,118600.0,2.07997968]
[1754850822994,0.03442,118610.0,118600.0,2.40245156]
[1754850824395,0.03442,118610.0,118600.0,2.07997968]
[1754850825296,0.05534985,118610.0,118600.0,2.07997968]
[1754850826898,0.05534985,118610.0,118600.0,2.07197968]
[1754850827692,0.05534985,118610.0,118600.0,1.32937968]
[1754850827897,0.05534985,118610.0,118600.0,2.09521968]
[1754850829503,0.05535008,118610.0,118600.0,2.09521968]
[1754850833698,0.05535008,118610.0,118600.0,1.37361968]
[1754850833904,0.05525008,118610.0,118600.0,2.08721968]
[1754850835311,0.03432,118610.0,118600.0,2.08721968]
[1754850835509,0.03432,118610.0,118600.0,2.08731968]
[1754850835510,0.03442,118610.0,118600.0,2.08731968]
[1754850837820,0.03442,118610.0,118600.0,1.7648478]
[1754850838114,0.0444,118610.0,118600.0,2.08731968]
[1754850838505,0.06529148,118610.0,118600.0,2.08731968]
[1754850838906,0.07958148,118610.0,118600.0,2.08731968]
[1754850840917,0.07958148,118610.0,118600.0,2.07931968]
[1754850849118,0.07958148,118610.0,118600.0,2.07131968]
[1754850852614,0.05531148,118610.0,118600.0,2.39379156]
[1754850856229,0.05531148,118610.0,118600.0,2.38579156]
[1754850859931,0.07955148,118610.0,118600.0,2.38579156]
[1754850860431,0.07955148,118610.0,118600.0,2.06331968]
[1754850861434,0.12979148,118610.0,118600.0,0.9750078]
[1754850861628,0.12979148,118610.0,118600.0,2.06319968]
[1754850863232,0.12979148,118610.0,118600.0,2.05519968]
[1754850864134,0.15160148,118610.0,118600.0,2.05519968]
[1754850870338,0.15160148,118610.0,118600.0,2.04719968]
[1754850870637,0.15155665,118610.0,118600.0,2.04719968]
[1754850872538,0.15155665,118610.0,118600.0,1.7247278]
[1754850872842,0.11720665,118610.0,118600.0,2.04719968]
[1754850876341,0.15098665,118610.0,118600.0,2.04719968]
[1754850877536,0.15098665,118610.0,118600.0,2.09509968]
[1754850877740,0.15098665,118610.0,118600.0,2.09569968]
[1754850883635,0.11720665,118610.0,118600.0,2.09569968]
[1754850884043,0.09539665,118610.0,118600.0,2.09569968]
[1754850884542,0.09539665,118610.0,118600.0,2.08769968]
[1754850885434,0.09539665,118610.0,118600.0,1.89679968]
[1754850885735,0.09539665,118610.0,118600.0,1.91417652]
[1754850886738,0.05526665,118610.0,118600.0,2.2366484]
[1754850887948,0.05226665,118610.0,118600.0,2.2356484]
[1754850888650,0.04826665,118610.0,118600.0,2.2356484]
[1754850891253,0.04826665,118610.0,118600.0,2.4984484]
[1754850891642,0.04816665,118610.0,118600.0,2.4983484]
[1754850896243,0.04816665,118610.0,118600.0,1.85340464]
[1754850896449,0.04826665,118610.0,118600.0,2.4984484]
[1754850898654,0.04826665,118610.0,118600.0,2.4904484]
[1754850902354,0.06233665,118610.0,118600.0,2.4904484]
[1754850902554,0.07157665,118610.0,118600.0,2.16797652]
[1754850904057,0.10535665,118610.0,118600.0,2.16797652]
[1754850905761,0.10535665,118610.0,118600.0,2.15997652]
[1754850909362,0.10535665,118610.0,118600.0,1.43837652]
[1754850909564,0.10535665,118610.0,118600.0,2.15997652]
[1754850912874,0.10535665,118610.0,118600.0,2.15197652]
[1754850914566,0.10535665,118610.0,118600.0,2.4744484]
[1754850916769,0.07157665,118610.0,118600.0,2.4744484]
[1754850919966,0.07157665,118610.0,118600.0,2.4664484]
[1754850922460,0.05750665,118610.0,118600.0,2.4664484]
[1754850922662,0.04826665,118610.0,118600.0,2.4664484]
[1754850926967,0.06286665,118610.0,118600.0,2.4584484]
[1754850927465,0.07216665,118610.0,118600.0,2.4584484]
[1754850927968,0.10459665,118610.0,118600.0,2.4584484]
[1754850928174,0.12039665,118610.0,118600.0,2.4584484]
[1754850928574,0.14222665,118610.0,118600.0,2.4584484]
[1754850929472,0.14222665,118610.0,118600.0,2.13597652]
[1754850934078,0.14222665,118610.0,118600.0,1.40637652]
[1754850934274,0.14222665,118610.0,118600.0,2.12797652]
[1754850940670,0.14222665,118610.0,118600.0,1.40637652]
[1754850940874,0.14222665,118610.0,118600.0,2.12797652]
[1754850941184,0.14222665,118610.0,118600.0,2.09166872]
[1754850941582,0.14222665,118610.0,118600.0,2.17597652]
[1754850942683,0.14222665,118610.0,118600.0,1.45437652]
[1754850942886,0.14222665,118610.0,118600.0,2.17597652]
[1754850943885,0.14222665,118610.0,118600.0,2.4984484]
[1754850948188,0.14222665,118610.0,118600.0,2.4904484]
[1754850950397,0.14222665,118610.0,118600.0,2.16797652]
[1754850951389,0.10979665,118610.0,118600.0,2.16797652]
[1754850951693,0.10979665,118610.0,118600.0,1.44637652]
[1754850951888,0.10979665,118610.0,118600.0,2.16797652]
[1754850952089,0.10979665,118610.0,118600.0,2.4904484]
[1754850955298,0.10979665,118610.0,118600.0,2.4824484]
[1754850956700,0.10979665,118610.0,118600.0,1.7608484]
[1754850956900,0.10979665,118610.0,118600.0,2.4824484]
[1754850957701,0.10979665,118610.0,118600.0,1.7608484]
[1754850957902,0.10979665,118610.0,118600.0,2.4824484]
[1754850958504,0.10979665,118610.0,118600.0,1.83750464]
[1754850958693,0.10979665,118610.0,118600.0,2.15997652]
[1754850958900,0.10979665,118610.0,118600.0,2.4824484]
[1754850959102,0.10979665,118610.0,118600.0,2.15997652]
[1754850959402,0.10979665,118610.0,118600.0,2.4824484]
[1754850962399,0.10979665,118610.0,118600.0,2.4744484]
[1754850963712,0.07216665,118610.0,118600.0,2.4744484]
[1754850964212,0.05756665,118610.0,118600.0,2.4744484]
[1754850966807,0.04826665,118610.0,118600.0,2.4744484]
[1754850970009,0.04826665,118610.0,118600.0,2.4664484]
[1754850974098,0.06249665,118610.0,118600.0,2.4664484]
[1754850976011,0.04826665,118610.0,118600.0,2.4664484]
[1754850976512,0.04823532,118610.0,118600.0,2.4664484]
[1754850977214,0.04823532,118610.0,118600.0,2.4584484]
[1754850984316,0.04823532,118610.0,118600.0,2.4504484]
[1754850987016,0.07181532,118610.0,118600.0,2.4504484]
[1754850991517,0.07181532,118610.0,118600.0,2.4424484]
[1754850992119,0.07181532,118610.0,118600.0,1.7208484]
[1754850992323,0.07181532,118610.0,118600.0,2.4424484]
[1754850993126,0.07181532,118610.0,118600.0,2.11997652]
[1754850995919,0.07181532,118610.0,118600.0,2.4424484]
[1754850996326,0.05758532,118610.0,118600.0,2.4424484]
[1754850998625,0.05758532,118610.0,118600.0,2.4344484]
[1754850999222,0.04823532,118610.0,118600.0,2.4344484]
[1754851002024,0.04823532,118610.0,118600.0,1.7128484]
[1754851002224,0.04823532,118610.0,118600.0,2.4344484]
[1754851004926,0.06309532,118610.0,118600.0,2.4344484]
[1754851005717,0.06309532,118610.0,118600.0,2.4264484]
[1754851005912,0.06306809,118610.0,118600.0,2.4264484]
[1754851006118,0.07265809,118610.0,118600.0,2.4264484]
[1754851008228,0.07265809,118610.0,118600.0,2.42648184]
[1754851011121,0.14185809,118610.0,118600.0,2.42648184]
[1754851012736,0.14185809,118610.0,118600.0,2.41848184]
[1754851013240,0.02388809,118610.0,118600.0,2.41848184]
[1754851013533,0.04776809,118610.0,118600.0,2.41848184]
[1754851015633,0.04776809,118610.0,118600.0,2.15568184]
[1754851019834,0.04776809,118610.0,118600.0,2.14768184]
[1754851021338,0.04776809,118610.0,118600.0,1.42608184]
[1754851021540,0.04776809,118610.0,118600.0,2.41048184]
[1754851022744,0.04776809,118610.0,118600.0,1.68888184]
[1754851022939,0.04776809,118610.0,118600.0,2.41048184]
[1754851026848,0.04776809,118610.0,118600.0,2.40248184]
[1754851029750,0.04776809,118610.0,118600.0,1.68088184]
[1754851029953,0.04776809,118610.0,118600.0,2.40248184]
[1754851034952,0.04776809,118610.0,118600.0,2.39448184]
[1754851042049,0.04776809,118610.0,118600.0,2.38648184]
[1754851042254,0.04776809,118610.0,118600.0,1.66488184]
[1754851042555,0.04776809,118610.0,118600.0,2.38648184]
[1754851043054,0.04776809,118610.0,118600.0,1.66488184]
[1754851043257,0.04776809,118610.0,118600.0,2.38648184]
[1754851045559,0.06626166,118610.0,118600.0,2.38648184]
[1754851049355,0.06626166,118610.0,118600.0,2.37848184]
[1754851052155,0.06626166,118610.0,118600.0,2.01768184]
[1754851052353,0.06626166,118610.0,118600.0,2.37848184]
[1754851052962,0.09053166,118610.0,118600.0,2.37848184]
[1754851053863,0.07597166,118610.0,118600.0,1.08721808]
[1754851054055,0.16067166,118610.0,118600.0,1.39227968]
[1754851054258,0.24497166,118610.0,118600.0,2.15831968]
[1754851054458,0.16067166,118610.0,118600.0,2.15831968]
[1754851056465,0.16057166,118610.0,118600.0,2.15031968]
[1754851056964,0.16057166,118610.0,118600.0,1.88751968]
[1754851060164,0.16057166,118610.0,118600.0,1.16591968]
[1754851060368,0.16067166,118610.0,118600.0,1.16601968]
[1754851060570,0.16067166,118610.0,118600.0,1.88761968]
[1754851061372,0.16067166,118610.0,118600.0,1.16601968]
[1754851061575,0.16067166,118610.0,118600.0,1.88761968]
[1754851061764,0.16067166,118610.0,118600.0,1.16601968]
[1754851061964,0.16067166,118610.0,118600.0,1.88761968]
[1754851062471,0.1606044,118610.0,118600.0,1.88761968]
[1754851063471,0.1606044,118610.0,118600.0,1.87961968]
[1754851064174,0.2449044,118610.0,118600.0,1.11357968]
[1754851064478,0.2449044,118610.0,118600.0,1.87961968]
[1754851066373,0.2449044,118610.0,118600.0,1.15801968]
[1754851066568,0.2449044,118610.0,118600.0,1.51881968]
[1754851067669,0.2449044,118610.0,118600.0,1.15801968]
[1754851067868,0.2449044,118610.0,118600.0,1.51881968]
[1754851070479,0.2449044,118610.0,118600.0,1.51081968]
[1754851077583,0.2449044,118610.0,118600.0,1.50281968]
[1754851079985,0.2449044,118610.0,118600.0,1.14201968]
[1754851080187,0.2449044,118610.0,118600.0,1.50281968]
[1754851081888,0.24489607,118610.0,118600.0,1.50281968]
[1754851083084,0.06618607,118610.0,118600.0,1.50281968]
[1754851083280,0.04230607,118610.0,118600.0,1.82529156]
[1754851084783,0.04230607,118610.0,118600.0,1.81729156]
[1754851089091,0.06555607,118610.0,118600.0,1.81729156]
[1754851091694,0.06555607,118610.0,118600.0,1.80929156]
[1754851098797,0.06555607,118610.0,118600.0,1.77188376]
[1754851099099,0.06555607,118610.0,118600.0,1.85619156]
[1754851099700,0.06555607,118610.0,118600.0,1.53371968]
[1754851101103,0.08892607,118610.0,118600.0,1.53371968]
[1754851101396,0.12074607,118610.0,118600.0,1.53371968]
[1754851102898,0.08892607,118610.0,118600.0,1.53371968]
[1754851106002,0.08882607,118610.0,118600.0,1.52571968]
[1754851108898,0.08882607,118610.0,118600.0,1.2032478]
[1754851109105,0.08892607,118610.0,118600.0,1.52581968]
[1754851111106,0.06821357,118610.0,118600.0,1.52581968]
[1754851111306,0.08893541,118610.0,118600.0,1.52581968]
[1754851112916,0.08893541,118610.0,118600.0,1.51781968]
[1754851113815,0.07522541,118610.0,118600.0,1.51781968]
[1754851114012,0.07522541,118610.0,118600.0,1.84029156]
[1754851115616,0.06556541,118610.0,118600.0,1.84029156]
[1754851116718,0.06556541,118610.0,118600.0,2.20109156]
[1754851117119,0.06556541,118610.0,118600.0,1.47949156]
[1754851117319,0.06556541,118610.0,118600.0,2.20109156]
[1754851120020,0.06556541,118610.0,118600.0,2.19309156]
[1754851120717,0.06556541,118610.0,118600.0,1.47149156]
[1754851120923,0.06556541,118610.0,118600.0,2.19309156]
[1754851122723,0.06556541,118610.0,118600.0,1.47149156]
[1754851122918,0.06556541,118610.0,118600.0,2.19309156]
[1754851127129,0.06556541,118610.0,118600.0,2.18509156]
[1754851128730,0.06556541,118610.0,118600.0,1.46349156]
[1754851128932,0.06556541,118610.0,118600.0,2.18509156]
[1754851134226,0.06556541,118610.0,118600.0,2.17709156]
[1754851141249,0.04231541,118610.0,118600.0,2.16909156]
[1754851141631,0.37748291,118640.0,118630.0,0.0842859]
[1754851141832,0.18788066,118640.0,118630.0,1.53351778]
[1754851142045,0.21944776,118640.0,118630.0,1.53351778]
[1754851142836,0.14016896,118640.0,118630.0,1.53451778]
[1754851143142,0.14726896,118640.0,118630.0,1.53561778]
[1754851143942,0.05015896,118640.0,118630.0,1.53461778]
[1754851144136,0.05415896,118640.0,118630.0,1.53561778]
[1754851144536,0.07802896,118640.0,118630.0,1.53561778]
[1754851144731,0.13079896,118640.0,118630.0,1.53561778]
[1754851145043,0.23054776,118640.0,118630.0,1.53561778]
[1754851145750,0.14626896,118640.0,118630.0,1.53561778]
[1754851147347,0.23054766,118640.0,118630.0,1.53561778]
[1754851147743,0.18502766,118640.0,118630.0,1.53561778]
[1754851147943,0.19909766,118640.0,118630.0,1.53561778]
[1754851149254,0.19909766,118640.0,118630.0,1.52761778]
[1754851150857,0.23337766,118640.0,118630.0,1.52761778]
[1754851153346,0.05415896,118640.0,118630.0,1.52761778]
[1754851153547,0.07474304,118640.0,118630.0,1.52761778]
[1754851153854,0.15902184,118640.0,118630.0,1.52761778]
[1754851157055,0.15902184,118640.0,118630.0,1.51961778]
[1754851159054,0.17309184,118640.0,118630.0,1.1971459]
[1754851159257,0.18219184,118640.0,118630.0,1.51961778]
[1754851164064,0.18219184,118640.0,118630.0,1.51161778]
[1754851165261,0.07407304,118640.0,118630.0,1.83408966]
[1754851166462,0.07407304,118640.0,118630.0,1.51161778]
[1754851167058,0.15835164,118640.0,118630.0,1.51161778]
[1754851167258,0.07407304,118640.0,118630.0,1.51161778]
[1754851167659,0.15835164,118640.0,118630.0,1.1891459]
[1754851167862,0.15835164,118640.0,118630.0,1.51161778]
[1754851170066,0.07407304,118640.0,118630.0,1.51161778]
[1754851170663,0.07407304,118640.0,118630.0,1.15081778]
[1754851170860,0.07407304,118640.0,118630.0,1.87241778]
[1754851171062,0.07407304,118640.0,118630.0,1.86441778]
[1754851175156,0.05059304,118640.0,118630.0,1.86441778]
[1754851175360,0.07407304,118640.0,118630.0,1.86441778]
[1754851176861,0.07407304,118640.0,118630.0,2.18688966]
[1754851178171,0.07407304,118640.0,118630.0,2.17888966]
[1754851179571,0.07407304,118640.0,118630.0,1.85641778]
[1754851185273,0.07407304,118640.0,118630.0,1.84841778]
[1754851188686,0.07407304,118640.0,118630.0,2.17088966]
[1754851190676,0.07407304,118640.0,118630.0,1.84841778]
[1754851192482,0.07407304,118640.0,118630.0,1.89641778]
[1754851195089,0.07407304,118640.0,118630.0,2.21888966]
[1754851198596,0.05059304,118640.0,118630.0,2.21888966]
[1754851199291,0.05059304,118640.0,118630.0,2.21088966]
[1754851204107,0.16970304,118640.0,118630.0,1.88841778]
[1754851206407,0.16970304,118640.0,118630.0,1.88041778]
[1754851207204,0.13552304,118640.0,118630.0,1.88041778]
[1754851208006,0.13552304,118640.0,118630.0,2.20288966]
[1754851213509,0.13552304,118640.0,118630.0,2.19488966]
[1754851215415,0.11493896,118640.0,118630.0,2.19488966]
[1754851220316,0.13551568,118640.0,118630.0,2.19488966]
[1754851220503,0.11493896,118640.0,118630.0,2.18688966]
[1754851221716,0.13537568,118640.0,118630.0,2.18688966]
[1754851221916,0.11493896,118640.0,118630.0,2.18688966]
[1754851222319,0.13537651,118640.0,118630.0,2.18688966]
[1754851223719,0.1353781,118640.0,118630.0,2.18688966]
[1754851227212,0.1677381,118640.0,118630.0,2.18688966]
[1754851227717,0.1677381,118640.0,118630.0,2.17888966]
[1754851232617,0.1353781,118640.0,118630.0,2.17888966]
[1754851234725,0.1353781,118640.0,118630.0,2.17088966]
[1754851240229,0.1353781,118640.0,118630.0,2.43368966]
[1754851241717,0.1353781,118640.0,118630.0,2.42568966]
[1754851246936,0.0822581,118640.0,118630.0,2.42568966]
[1754851248238,0.0730681,118640.0,118630.0,2.42568966]
[1754851248832,0.0730681,118640.0,118630.0,2.41768966]
[1754851255949,0.0730681,118640.0,118630.0,2.40968966]
[1754851261352,0.0828681,118640.0,118630.0,2.40968966]
[1754851261550,0.0968981,118640.0,118630.0,2.40968966]
[1754851262949,0.0968981,118640.0,118630.0,2.40168966]
[1754851263252,0.07798914,118640.0,118630.0,2.40168966]
[1754851264457,0.11055914,118640.0,118630.0,2.40168966]
[1754851266555,0.07798914,118640.0,118630.0,2.40168966]
[1754851266757,0.06395914,118640.0,118630.0,2.40168966]
[1754851270658,0.06395914,118640.0,118630.0,2.39368966]
[1754851277766,0.06395914,118640.0,118630.0,2.38568966]